bitfinex/quotes_BTCUSD_20220212
["timestamp","ask_amount","ask_price","bid_price","bid_amount"]
[1644704544541,0.00140304,41988.0,41984.0,7.844e-05]
[1644704544742,0.00140304,41988.0,41983.0,0.00052228]
[1644704545042,0.00140304,41988.0,41983.0,0.00044384]
[1644704545244,0.00140304,41988.0,41983.0,0.00052228]
[1644704545744,0.00140304,41988.0,41982.0,7.844e-05]
[1644704545943,0.25339407,41985.0,41983.0,0.009528]
[1644704546243,0.25339407,41985.0,41981.0,0.28638062]
[1644704546244,0.25339407,41985.0,41982.0,7.844e-05]
[1644704546443,0.34108245,41985.0,41981.0,0.22683362]
[1644704546643,0.34108245,41985.0,41982.0,0.331661]
[1644704546844,0.34108245,41985.0,41982.0,7.844e-05]
[1644704547043,0.34108245,41985.0,41981.0,0.22683362]
[1644704547044,0.25339407,41985.0,41981.0,0.22683362]
[1644704547286,0.25339407,41985.0,41982.0,0.331661]
[1644704547484,0.25339407,41985.0,41983.0,0.331661]
[1644704547685,0.25339407,41985.0,41982.0,7.844e-05]
[1644704547884,0.25339407,41985.0,41981.0,0.22683362]
[1644704548087,0.24839407,41985.0,41981.0,0.22683362]
[1644704548287,0.07481455,41984.0,41981.0,0.22727694]
[1644704549286,0.07481455,41984.0,41981.0,0.22683362]
[1644704549287,0.12481455,41984.0,41981.0,0.22683362]
[1644704549489,0.07481455,41984.0,41981.0,0.22683362]
[1644704549786,0.24839407,41985.0,41981.0,0.22683362]
[1644704550187,0.29839407,41985.0,41981.0,0.22683362]
[1644704550589,0.00119723,41984.0,41981.0,0.22683362]
[1644704551245,0.07805375,41982.0,41981.0,0.22683362]
[1644704551439,0.07024838,41982.0,41981.0,0.22683362]
[1644704553039,0.00419723,41984.0,41981.0,0.22683362]
[1644704554682,0.00419723,41984.0,41981.0,0.22691206]
[1644704555486,0.00419723,41984.0,41981.0,0.22683362]
[1644704555685,0.00419723,41984.0,41981.0,0.22691206]
[1644704555887,0.00290417,41982.0,41981.0,0.22691206]
[1644704556083,0.00290417,41982.0,41981.0,0.22683362]
[1644704556883,0.33429824,41985.0,41981.0,0.22683362]
[1644704557386,0.24839407,41985.0,41981.0,0.22683362]
[1644704557583,0.29839407,41985.0,41981.0,0.22683362]
[1644704557985,0.29839407,41985.0,41981.0,0.22725191]
[1644704558284,0.34839407,41985.0,41981.0,0.22725191]
[1644704558944,0.34839407,41985.0,41981.0,0.22683362]
[1644704559141,0.34839407,41985.0,41981.0,0.22725191]
[1644704560146,0.34839407,41985.0,41971.0,0.11667024]
[1644704560147,0.05,41983.0,41971.0,0.11667024]
[1644704560343,0.05,41983.0,41963.0,0.7402]
[1644704560344,0.06915313,41973.0,41963.0,0.7402]
[1644704560544,0.14909313,41973.0,41972.0,0.00167351]
[1644704560943,0.32137347,41973.0,41972.0,0.00167351]
[1644704561344,0.32137347,41973.0,41961.0,0.01]
[1644704561544,0.0534,41972.0,41969.0,0.009532]
[1644704561745,0.0534,41972.0,41961.0,0.01]
[1644704561943,0.0534,41972.0,41964.0,0.06937873]
[1644704561944,0.54307604,41972.0,41964.0,0.06937873]
[1644704562185,0.24307604,41972.0,41964.0,0.06937873]
[1644704562486,0.26897363,41965.0,41961.0,0.01]
[1644704562686,0.24207627,41965.0,41962.0,0.331661]
[1644704563195,0.24207627,41965.0,41964.0,0.24]
[1644704563386,0.24207627,41965.0,41964.0,0.571661]
[1644704564186,0.24207627,41965.0,41964.0,0.24]
[1644704565389,0.24207627,41965.0,41964.0,0.249533]
[1644704565950,0.24207627,41965.0,41964.0,0.24]
[1644704566941,0.24207627,41965.0,41964.0,0.22]
[1644704570302,0.24207627,41965.0,41964.0,0.215]
[1644704570503,0.24207627,41965.0,41962.0,0.00040199]
[1644704570708,0.36037235,41965.0,41962.0,0.00040199]
[1644704570905,0.36037235,41965.0,41964.0,0.00179223]
[1644704572806,0.29207627,41965.0,41964.0,0.00179223]
[1644704573205,0.58724697,41965.0,41964.0,0.00179223]
[1644704574237,0.58224697,41965.0,41964.0,0.00179223]
[1644704574837,0.58224697,41965.0,41964.0,0.23179223]
[1644704575640,0.58224697,41965.0,41964.0,0.23]
[1644704581541,0.53724697,41965.0,41964.0,0.23]
[1644704582143,0.58724697,41965.0,41964.0,0.23]
[1644704582541,0.73724697,41965.0,41956.0,0.0017596]
[1644704582742,0.0534,41964.0,41962.0,7.972e-05]
[1644704582941,0.3,41963.0,41956.0,0.0017596]
[1644704583143,0.0534,41962.0,41953.0,7.972e-05]
[1644704583342,0.0534,41962.0,41952.0,0.00107972]
[1644704583641,0.26588215,41956.0,41952.0,0.00107972]
[1644704584042,0.36588215,41956.0,41952.0,0.00107972]
[1644704584800,0.29931941,41955.0,41952.0,0.00107972]
[1644704584998,0.29931941,41955.0,41952.0,0.23107972]
[1644704586201,0.29931941,41955.0,41952.0,0.00107972]
[1644704586704,0.08923064,41954.0,41952.0,0.00107972]
[1644704586902,0.27437034,41953.0,41952.0,0.001]
[1644704588307,0.27437034,41953.0,41950.0,0.001]
[1644704592193,0.05,41952.0,41950.0,0.001]
[1644704592394,0.27399858,41951.0,41950.0,0.001]
[1644704592792,1.53699858,41951.0,41950.0,0.001]
[1644704592991,0.27399858,41951.0,41950.0,0.001]
[1644704595494,0.32739858,41951.0,41950.0,0.001]
[1644704596539,0.47739858,41951.0,41947.0,0.00043938]
[1644704596736,0.37739858,41951.0,41947.0,0.00043938]
[1644704596935,0.47739858,41951.0,41947.0,0.00043938]
[1644704597640,0.49507609,41950.0,41947.0,0.00043938]
[1644704597836,0.54507609,41950.0,41947.0,0.00051912]
[1644704598238,0.64507609,41950.0,41947.0,0.00051912]
[1644704598639,0.54507609,41950.0,41947.0,0.00051912]
[1644704598839,2.33547337,41948.0,41941.0,0.0111]
[1644704599040,2.33547337,41948.0,41935.0,0.1201]
[1644704599041,0.31812906,41947.0,41935.0,0.1201]
[1644704599441,0.19132704,41938.0,41935.0,0.1201]
[1644704599895,0.19132704,41938.0,41931.0,0.01]
[1644704599896,0.08194942,41936.0,41931.0,0.01]
[1644704600897,0.05,41935.0,41931.0,0.01]
[1644704601098,0.25753796,41934.0,41931.0,0.01]
[1644704601300,0.30753796,41934.0,41931.0,0.01043947]
[1644704602297,0.30753796,41934.0,41931.0,0.01]
[1644704603743,0.30753796,41934.0,41926.0,0.0011]
[1644704603938,0.30753796,41934.0,41925.0,0.1102]
[1644704604338,0.40753796,41934.0,41929.0,0.009541]
[1644704605140,0.40753796,41934.0,41925.0,0.1102]
[1644704605339,0.40753796,41934.0,41925.0,0.1052]
[1644704605340,0.06980417,41928.0,41925.0,0.1052]
[1644704605543,0.22728042,41927.0,41922.0,0.0022]
[1644704605740,0.48007311,41927.0,41922.0,0.0022]
[1644704605940,0.22728042,41927.0,41922.0,0.0022]
[1644704606239,0.22728042,41927.0,41916.0,0.137256]
[1644704606240,0.52728042,41927.0,41919.0,0.22137576]
[1644704606442,0.52728042,41927.0,41916.0,0.11426798]
[1644704606443,0.3,41926.0,41916.0,0.11426798]
[1644704606642,0.20572553,41920.0,41919.0,0.30351902]
[1644704606843,0.08704068,41920.0,41918.0,0.30351902]
[1644704607042,0.08704068,41920.0,41917.0,0.31055465]
[1644704607291,0.21234085,41919.0,41917.0,0.31074055]
[1644704607491,0.21234085,41919.0,41917.0,0.0001859]
[1644704608290,0.21234085,41919.0,41917.0,0.009542]
[1644704608492,0.21234085,41919.0,41917.0,0.331661]
[1644704609591,0.16378949,41919.0,41918.0,0.331661]
[1644704609793,0.16378949,41919.0,41916.0,0.0001859]
[1644704610695,0.16378949,41919.0,41914.0,0.331661]
[1644704610946,0.16378949,41919.0,41915.0,0.00040827]
[1644704611340,0.16378949,41919.0,41913.0,0.331661]
[1644704612139,0.16378949,41919.0,41913.0,0.341204]
[1644704612340,0.16378949,41919.0,41914.0,0.331661]
[1644704612540,0.16378949,41919.0,41912.0,0.0165324]
[1644704612741,0.25854037,41918.0,41912.0,0.0165324]
[1644704612940,0.16378949,41919.0,41912.0,0.0165324]
[1644704613141,0.0534,41930.0,41916.0,0.05]
[1644704613344,0.0534,41934.0,41914.0,0.4188]
[1644704614141,0.22618511,41922.0,41917.0,0.07448047]
[1644704614784,0.22618511,41922.0,41915.0,7.964e-05]
[1644704614785,0.22618511,41922.0,41916.0,0.331661]
[1644704614985,0.28948505,41930.0,41916.0,0.331661]
[1644704615186,0.28948505,41930.0,41916.0,0.059638]
[1644704615585,0.33948505,41930.0,41916.0,0.059638]
[1644704615788,0.00043843,41925.0,41916.0,0.14849698]
[1644704615990,0.20280797,41920.0,41917.0,0.331661]
[1644704616288,0.20280797,41920.0,41914.0,0.1188]
[1644704616289,0.20280797,41920.0,41918.0,0.331661]
[1644704616486,0.00043843,41925.0,41916.0,0.331661]
[1644704616689,0.41332446,41930.0,41914.0,0.00114759]
[1644704616690,0.21332446,41930.0,41914.0,0.00114759]
[1644704616888,0.21332446,41930.0,41915.0,7.964e-05]
[1644704617089,0.00040003,41923.0,41915.0,7.964e-05]
[1644704617288,0.00040003,41923.0,41914.0,0.00114759]
[1644704617490,0.00040003,41923.0,41915.0,0.331661]
[1644704617690,0.21998391,41920.0,41916.0,0.331661]
[1644704617889,0.21998391,41920.0,41916.0,0.33174064]
[1644704618089,0.21998391,41920.0,41915.0,7.964e-05]
[1644704618290,0.00040003,41923.0,41914.0,0.00114759]
[1644704618737,0.00040003,41923.0,41915.0,0.0534]
[1644704618939,0.00040003,41923.0,41915.0,0.05347964]
[1644704619138,0.0864878,41928.0,41915.0,0.05347964]
[1644704619337,0.21332446,41930.0,41915.0,0.05347964]
[1644704619338,0.00040003,41923.0,41915.0,0.05347964]
[1644704619739,0.2532712,41921.0,41915.0,0.05347964]
[1644704619940,0.18127426,41921.0,41915.0,0.05347964]
[1644704620739,0.18127426,41921.0,41916.0,0.00111438]
[1644704621144,0.18127426,41921.0,41916.0,0.00119402]
[1644704622191,0.00040437,41923.0,41916.0,0.00119402]
[1644704622795,0.35184992,41929.0,41919.0,0.08592858]
[1644704622993,0.00040438,41923.0,41919.0,0.08592858]
[1644704623195,0.26839153,41921.0,41917.0,7.964e-05]
[1644704623395,0.26839153,41921.0,41916.0,0.00119402]
[1644704623798,0.26839153,41921.0,41916.0,0.01073502]
[1644704624296,0.26839153,41921.0,41917.0,0.08763136]
[1644704624496,0.26339153,41921.0,41917.0,0.087711]
[1644704624700,0.00040437,41923.0,41917.0,0.087711]
[1644704625098,0.30184992,41929.0,41917.0,0.087711]
[1644704625298,0.00040375,41923.0,41917.0,0.087711]
[1644704625498,0.00040375,41923.0,41917.0,0.00962064]
[1644704625699,0.2093873,41920.0,41919.0,0.00111432]
[1644704627145,0.00040375,41923.0,41919.0,0.00111432]
[1644704627546,0.30184992,41929.0,41919.0,0.00111432]
[1644704627747,0.00040375,41923.0,41919.0,0.00111432]
[1644704628147,0.24385195,41923.0,41919.0,0.00111432]
[1644704628748,0.2434482,41923.0,41919.0,0.00111432]
[1644704628950,0.24385204,41923.0,41919.0,0.00111432]
[1644704629988,0.2434482,41923.0,41919.0,0.00111432]
[1644704630187,0.24385204,41923.0,41919.0,0.00111432]
[1644704631186,0.2434482,41923.0,41919.0,0.00111432]
[1644704631401,0.24385204,41923.0,41919.0,0.00111432]
[1644704632388,0.2434482,41923.0,41919.0,0.00111432]
[1644704632686,0.24385203,41923.0,41919.0,0.00111432]
[1644704633086,0.00040383,41923.0,41919.0,0.00111432]
[1644704633287,0.00028516,41923.0,41919.0,0.00111432]
[1644704633540,0.30184992,41929.0,41919.0,0.00111432]
[1644704633740,0.00040383,41923.0,41919.0,0.00111432]
[1644704633941,0.00040383,41923.0,41919.0,0.00119396]
[1644704634142,0.00040383,41923.0,41920.0,0.19644725]
[1644704634340,0.00040383,41923.0,41920.0,7.964e-05]
[1644704634539,0.00040383,41923.0,41919.0,0.00111432]
[1644704634740,0.25921407,41928.0,41919.0,0.00111432]
[1644704635539,0.25220286,41922.0,41918.0,7.964e-05]
[1644704635742,0.25220286,41922.0,41917.0,0.30345641]
[1644704635940,0.3,41929.0,41919.0,0.30337677]
[1644704636139,0.00040381,41925.0,41919.0,0.30337677]
[1644704636542,0.20115043,41929.0,41919.0,0.30337677]
[1644704636744,0.29898284,41930.0,41919.0,0.30337677]
[1644704636942,0.22540548,41927.0,41920.0,0.30337677]
[1644704637188,0.22540548,41927.0,41919.0,0.30337677]
[1644704638187,0.22540548,41927.0,41921.0,0.30337677]
[1644704638786,0.22540548,41927.0,41920.0,0.30345641]
[1644704638986,0.22540548,41927.0,41920.0,0.30337677]
[1644704639190,0.22540548,41927.0,41920.0,0.30345641]
[1644704639391,0.22540548,41927.0,41921.0,0.30337677]
[1644704639690,0.22540548,41927.0,41921.0,0.30345641]
[1644704639887,0.22584342,41927.0,41921.0,0.30337677]
[1644704640386,0.22584342,41927.0,41920.0,0.30345641]
[1644704640586,0.22584342,41927.0,41921.0,0.30337677]
[1644704640791,0.22540548,41927.0,41920.0,0.30345641]
[1644704641039,0.22584342,41927.0,41920.0,0.30337677]
[1644704641239,0.22584342,41927.0,41923.0,0.30337677]
[1644704641839,0.22540548,41927.0,41923.0,0.30337677]
[1644704642239,0.00043795,41927.0,41923.0,0.30337677]
[1644704642539,0.00043795,41927.0,41924.0,0.30337677]
[1644704642741,0.00043795,41927.0,41926.0,0.2630726]
[1644704642942,0.00043795,41927.0,41925.0,0.0534]
[1644704643145,0.81144971,41941.0,41925.0,0.35677677]
[1644704643444,0.08746618,41940.0,41927.0,0.30337677]
[1644704643641,8.69662323,41927.0,41926.0,0.0534]
[1644704644041,8.69662323,41927.0,41926.0,0.48352108]
[1644704644243,8.69662323,41927.0,41926.0,0.83751856]
[1644704644444,8.69662323,41927.0,41926.0,1.03703424]
[1644704644694,7.88487403,41927.0,41926.0,1.03791058]
[1644704644891,7.88487403,41927.0,41926.0,0.68303676]
[1644704645494,7.87987403,41927.0,41926.0,0.68303676]
[1644704646694,7.87987403,41927.0,41926.0,0.69257676]
[1644704647094,7.87987403,41927.0,41926.0,0.68303676]
[1644704649339,7.87987403,41927.0,41926.0,0.78303676]
[1644704650141,7.87987403,41927.0,41926.0,0.68303676]
[1644704650441,7.87987403,41927.0,41926.0,0.69257676]
[1644704650643,7.87987403,41927.0,41926.0,0.69346706]
[1644704651844,7.87987403,41927.0,41926.0,0.79346706]
[1644704653715,7.87987403,41927.0,41926.0,0.69346706]
[1644704654415,7.87987403,41927.0,41926.0,0.48395138]
[1644704654614,7.06814316,41927.0,41926.0,0.48395138]
[1644704654815,7.06814316,41927.0,41926.0,0.58395138]
[1644704655813,7.06814316,41927.0,41926.0,0.79726979]
[1644704656042,7.06814316,41927.0,41926.0,0.79833815]
[1644704656641,7.06814316,41927.0,41926.0,0.69987807]
[1644704658346,7.06814316,41927.0,41926.0,0.80941707]
[1644704658543,7.06814316,41927.0,41926.0,0.58655866]
[1644704658843,7.06814316,41927.0,41926.0,0.57701966]
[1644704659545,7.06814316,41927.0,41926.0,1.50443766]
[1644704659546,6.73729847,41927.0,41926.0,1.50443766]
[1644704659799,6.73729847,41927.0,41926.0,1.60485454]
[1644704659998,6.34396856,41927.0,41926.0,2.86785454]
[1644704660202,6.31046856,41927.0,41926.0,1.60485454]
[1644704660498,5.36361532,41927.0,41926.0,1.79571377]
[1644704660699,5.36361532,41927.0,41926.0,1.79464541]
[1644704660903,5.36361532,41927.0,41926.0,3.05764541]
[1644704660904,5.05821532,41927.0,41926.0,3.05764541]
[1644704661100,5.05821532,41927.0,41926.0,3.11307865]
[1644704661498,5.02262532,41927.0,41926.0,3.55764541]
[1644704661900,5.02262532,41927.0,41926.0,3.59260658]
[1644704662500,4.64600345,41927.0,41926.0,3.59260658]
[1644704662704,4.64600345,41927.0,41926.0,3.59853312]
[1644704662705,4.21858479,41927.0,41926.0,3.59853312]
[1644704662903,1.82909684,41927.0,41926.0,3.59260658]
[1644704663104,0.25203028,41960.0,41941.0,0.023839]
[1644704663105,0.08262423,41958.0,41941.0,0.023839]
[1644704663306,0.2847134,41960.0,41945.0,0.25068657]
[1644704663547,0.1177,41962.0,41946.0,0.0534]
[1644704663548,0.07692372,41958.0,41946.0,0.0534]
[1644704663744,0.08919266,41951.0,41947.0,0.431661]
[1644704663942,0.08919266,41951.0,41948.0,0.0534]
[1644704664342,0.08919266,41951.0,41949.0,0.331661]
[1644704664543,0.29096389,41951.0,41950.0,0.0534]
[1644704664745,0.22334818,41959.0,41950.0,0.385061]
[1644704664946,0.22334818,41959.0,41950.0,0.1534]
[1644704665143,0.1177,41962.0,41950.0,0.1534]
[1644704665144,0.21307621,41952.0,41950.0,0.1534]
[1644704665346,0.21307621,41952.0,41951.0,0.331661]
[1644704665644,0.20776684,41958.0,41951.0,0.0534]
[1644704665843,0.0694765,41953.0,41951.0,0.1534]
[1644704666846,0.0694765,41953.0,41951.0,0.0534]
[1644704667044,0.2742108,41953.0,41951.0,0.0534]
[1644704668093,0.0694765,41953.0,41951.0,0.0534]
[1644704669395,0.0694765,41953.0,41952.0,0.331661]
[1644704669596,0.1177,41962.0,41952.0,0.385061]
[1644704669800,0.00022216,41954.0,41952.0,0.1534]
[1644704670199,0.00022216,41954.0,41952.0,0.0534]
[1644704670596,0.07520415,41954.0,41953.0,0.331661]
[1644704670796,0.24015898,41957.0,41953.0,0.485061]
[1644704671042,0.00043817,41955.0,41954.0,0.331661]
[1644704671245,0.00043817,41955.0,41954.0,0.485061]
[1644704671442,0.00043817,41955.0,41954.0,0.535061]
[1644704671741,0.00043817,41955.0,41954.0,0.80753233]
[1644704671943,0.0742131,41961.0,41954.0,0.80753233]
[1644704672144,0.00043816,41957.0,41955.0,0.331661]
[1644704672343,0.00043816,41957.0,41956.0,0.0534]
[1644704672543,0.00043816,41957.0,41956.0,0.385061]
[1644704672746,0.00043816,41957.0,41956.0,0.485061]
[1644704673151,0.0011,41962.0,41956.0,0.585061]
[1644704673351,0.0011,41962.0,41957.0,0.391234]
[1644704673547,0.00043815,41959.0,41958.0,0.0534]
[1644704673748,0.00043815,41959.0,41958.0,0.485061]
[1644704674149,0.00043815,41959.0,41958.0,0.585061]
[1644704674350,0.0011,41962.0,41958.0,0.585061]
[1644704674549,0.0011,41962.0,41960.0,0.331661]
[1644704674550,0.00043814,41961.0,41960.0,0.331661]
[1644704674790,0.00043814,41961.0,41960.0,0.485061]
[1644704674989,0.00043814,41961.0,41960.0,0.585061]
[1644704675492,0.00043814,41961.0,41960.0,0.704196]
[1644704675689,0.0011,41962.0,41960.0,0.704196]
[1644704676290,0.0011,41962.0,41960.0,1.371996]
[1644704676491,0.22575131,41980.0,41964.0,0.023826]
[1644704676692,0.22575131,41980.0,41965.0,0.27539856]
[1644704676693,0.48405961,41980.0,41965.0,0.27539856]
[1644704676995,0.48405961,41980.0,41966.0,0.331661]
[1644704677192,0.07633863,41973.0,41968.0,0.119113]
[1644704677395,0.07633863,41973.0,41969.0,0.444617]
[1644704677591,0.0785453,41982.0,41970.0,0.331661]
[1644704677791,0.1147,41987.0,41970.0,0.0534]
[1644704678191,0.00022166,41978.0,41970.0,0.0534]
[1644704678639,0.07997633,41971.0,41970.0,0.0534]
[1644704678839,0.07997633,41971.0,41970.0,0.385061]
[1644704679240,0.07997633,41971.0,41970.0,0.0534]
[1644704679641,0.00043844,41973.0,41970.0,0.385061]
[1644704679842,0.00043844,41973.0,41970.0,0.2034]
[1644704680043,0.00043844,41973.0,41971.0,0.391217]
[1644704680241,0.00043844,41973.0,41972.0,1.45636278]
[1644704680441,0.6846,41993.0,41973.0,0.331661]
[1644704680646,0.6846,41993.0,41975.0,0.6678]
[1644704680843,0.06527122,41980.0,41976.0,0.74383184]
[1644704681241,0.06527122,41980.0,41977.0,0.29883773]
[1644704681445,0.06527122,41980.0,41978.0,0.385061]
[1644704681842,0.06527122,41980.0,41978.0,0.485061]
[1644704682293,0.06527122,41980.0,41978.0,0.508878]
[1644704683297,0.06527122,41980.0,41979.0,0.29410714]
[1644704683495,0.06527122,41980.0,41979.0,0.385061]
[1644704683895,0.0004384,41981.0,41980.0,0.331661]
[1644704684095,0.05553136,41979.0,41978.0,0.073817]
[1644704684294,0.05553136,41979.0,41978.0,0.518462]
[1644704684496,0.05553136,41979.0,41978.0,0.8208578]
[1644704685196,0.05553136,41979.0,41978.0,0.527991]
[1644704685495,0.05553136,41979.0,41978.0,0.544632]
[1644704686144,0.35553136,41979.0,41978.0,0.236097]
[1644704686343,0.35553136,41979.0,41966.0,0.6]
[1644704686543,0.3,41978.0,41967.0,0.5]
[1644704686744,0.06909302,41977.0,41967.0,0.5]
[1644704686944,0.31253017,41977.0,41967.0,0.5]
[1644704687545,0.19472278,41968.0,41967.0,0.331703]
[1644704688549,0.2831117,41968.0,41967.0,0.331703]
[1644704688746,0.2831117,41968.0,41967.0,0.341236]
[1644704689147,0.2831117,41968.0,41967.0,0.331703]
[1644704690207,0.2781117,41968.0,41967.0,0.331703]
[1644704692609,0.2781117,41968.0,41967.0,0.341236]
[1644704693010,0.08838892,41968.0,41967.0,0.331703]
[1644704694050,0.08838892,41968.0,41967.0,0.286345]
[1644704695952,0.08838892,41968.0,41967.0,0.28892972]
[1644704700498,0.08838892,41968.0,41967.0,0.2897545]
[1644704703052,0.08838892,41968.0,41967.0,0.3351125]
[1644704706194,0.08338892,41968.0,41967.0,0.33330056]
[1644704707194,0.3498896,41968.0,41967.0,0.33338056]
[1644704707395,0.3498896,41968.0,41967.0,0.00159756]
[1644704707894,0.08338892,41968.0,41967.0,0.00159756]
[1644704708847,0.13678892,41968.0,41967.0,0.00159756]
[1644704711452,0.42059853,41968.0,41967.0,0.00159756]
[1644704711650,0.13678892,41968.0,41967.0,0.00159756]
[1644704712503,0.44883653,41968.0,41967.0,0.00159756]
[1644704713007,0.44883653,41968.0,41967.0,9.756e-05]
[1644704713008,1.86183653,41968.0,41967.0,9.756e-05]
[1644704713207,1.86183653,41968.0,41957.0,0.009535]
[1644704713404,1.86183653,41968.0,41950.0,0.00175673]
[1644704713405,0.24442214,41959.0,41950.0,0.00175673]
[1644704713605,0.0534,41958.0,41950.0,0.00175673]
[1644704714006,0.07484051,41957.0,41947.0,0.1]
[1644704714208,0.07484051,41957.0,41948.0,0.331783]
[1644704714607,0.24675156,41949.0,41948.0,0.331783]
[1644704714905,0.33401711,41949.0,41948.0,0.331783]
[1644704716048,0.08726555,41949.0,41948.0,0.34132]
[1644704716447,0.08726555,41949.0,41948.0,0.331783]
[1644704717049,0.33365602,41949.0,41948.0,0.331783]
[1644704718850,0.08726555,41949.0,41948.0,0.331783]
[1644704719452,0.08226555,41949.0,41948.0,0.331783]
[1644704719897,0.08226555,41949.0,41948.0,0.34132]
[1644704720097,0.08226555,41949.0,41948.0,0.331783]
[1644704720501,0.08226555,41949.0,41948.0,0.33418095]
[1644704725771,0.08226555,41949.0,41948.0,0.331783]
[1644704727398,0.28482808,41957.0,41948.0,0.331783]
[1644704727596,0.28482808,41957.0,41948.0,0.34132]
[1644704728196,0.28482808,41957.0,41948.0,0.331783]
[1644704728398,0.06738702,41950.0,41948.0,0.331783]
[1644704731452,0.20125498,41971.0,41950.0,0.119158]
[1644704731649,0.1197,41973.0,41956.0,0.08962398]
[1644704731847,0.1216,41974.0,41957.0,0.331783]
[1644704732048,0.12182248,41974.0,41957.0,0.331783]
[1644704732249,0.1216,41974.0,41961.0,0.20989882]
[1644704732448,0.00022274,41965.0,41963.0,0.059568]
[1644704732649,0.00022274,41965.0,41964.0,0.331783]
[1644704732846,0.00022274,41965.0,41964.0,0.431783]
[1644704733246,0.00022248,41974.0,41964.0,0.431783]
[1644704733445,0.06949804,41968.0,41964.0,0.1]
[1644704733647,0.00019951,41967.0,41965.0,0.331783]
[1644704734449,0.06949804,41968.0,41965.0,0.331783]
[1644704734697,0.06969755,41968.0,41965.0,0.331783]
[1644704735696,0.06949804,41968.0,41965.0,0.331783]
[1644704736095,0.06949804,41968.0,41965.0,0.32582026]
[1644704738649,0.06949804,41968.0,41960.0,0.331789]
[1644704738850,0.06949804,41968.0,41960.0,0.431789]
[1644704739050,0.06949804,41968.0,41962.0,0.331789]
[1644704739251,0.06949804,41968.0,41963.0,0.0534]
[1644704739451,0.18995919,41967.0,41964.0,0.331789]
[1644704739650,0.00042681,41966.0,41965.0,0.0534]
[1644704739854,0.00042681,41966.0,41965.0,0.385189]
[1644704740552,0.06949804,41968.0,41965.0,0.385189]
[1644704740853,0.06986282,41968.0,41967.0,0.331789]
[1644704741353,0.06986282,41968.0,41967.0,0.385189]
[1644704741651,0.06949804,41968.0,41967.0,0.385189]
[1644704742305,0.06975646,41968.0,41967.0,0.385189]
[1644704747145,0.06949804,41968.0,41967.0,0.385189]
[1644704750920,0.05679804,41968.0,41967.0,0.385189]
[1644704753120,0.00040666,41970.0,41967.0,0.385189]
[1644704753753,0.00022248,41974.0,41967.0,0.385189]
[1644704753955,0.00040666,41971.0,41967.0,0.0534]
[1644704754155,0.00040666,41971.0,41968.0,0.331789]
[1644704754554,0.00040666,41971.0,41970.0,0.331789]
[1644704754753,0.00040666,41971.0,41970.0,0.385189]
[1644704754953,0.08551071,41972.0,41970.0,0.385189]
[1644704755155,0.08551071,41972.0,41970.0,0.0534]
[1644704759097,0.00062869,41973.0,41971.0,0.331789]
[1644704759298,0.00040621,41973.0,41972.0,0.0534]
[1644704759698,0.22020753,41975.0,41972.0,0.0534]
[1644704759899,0.22039126,41975.0,41972.0,0.0534]
[1644704760101,0.07969066,41973.0,41966.0,0.00261449]
[1644704760302,0.07969066,41973.0,41967.0,0.331789]
[1644704760502,0.07969066,41973.0,41968.0,0.331789]
[1644704760955,0.07969066,41973.0,41971.0,0.00346172]
[1644704761150,0.08009688,41973.0,41971.0,0.00346172]
[1644704762251,0.07969066,41973.0,41971.0,0.00346172]
[1644704763851,0.00062868,41974.0,41971.0,0.00346172]
[1644704764250,0.0004062,41974.0,41971.0,0.00346172]
[1644704764451,0.00022248,41976.0,41971.0,0.00346172]
[1644704764699,0.00040619,41975.0,41971.0,0.00346172]
[1644704765499,0.00040619,41975.0,41972.0,0.331789]
[1644704765701,0.00022248,41975.0,41974.0,0.331789]
[1644704765903,0.05553136,41979.0,41974.0,0.485189]
[1644704765904,0.00022248,41977.0,41974.0,0.485189]
[1644704766099,0.05553136,41979.0,41974.0,0.585189]
[1644704766100,0.00040619,41975.0,41974.0,0.585189]
[1644704766500,0.00040619,41975.0,41974.0,0.535189]
[1644704766699,0.00040619,41975.0,41974.0,0.485189]
[1644704766899,0.00022248,41977.0,41974.0,0.485189]
[1644704767100,0.00022248,41978.0,41974.0,0.485189]
[1644704767301,0.00040619,41977.0,41974.0,0.485189]
[1644704767902,0.00040619,41977.0,41976.0,0.331789]
[1644704768101,0.05575384,41979.0,41976.0,0.69049893]
[1644704768304,0.05553136,41979.0,41976.0,0.69049893]
[1644704768555,0.00040618,41978.0,41976.0,0.74049893]
[1644704768751,0.00040618,41978.0,41977.0,0.63130954]
[1644704768950,0.00040618,41978.0,41977.0,0.385189]
[1644704769150,0.00040618,41978.0,41977.0,0.485189]
[1644704769351,0.05553136,41979.0,41977.0,0.485189]
[1644704769550,0.05553136,41979.0,41978.0,0.391333]
[1644704769752,0.05553136,41979.0,41978.0,0.50825096]
[1644704770050,0.05553136,41979.0,41978.0,0.94003996]
[1644704770450,0.05553136,41979.0,41978.0,0.94956996]
[1644704770654,0.05553136,41979.0,41978.0,0.94003996]
[1644704771854,0.04283136,41979.0,41978.0,0.94003996]
[1644704774003,0.03783136,41979.0,41978.0,0.94003996]
[1644704776154,0.03783136,41979.0,41978.0,0.94348962]
[1644704777450,0.00062864,41981.0,41980.0,0.331789]
[1644704777651,0.00040616,41981.0,41980.0,0.68669484]
[1644704777851,0.00022248,41988.0,41982.0,0.331789]
[1644704778051,0.01,41989.0,41983.0,0.112934]
[1644704778251,0.00022248,41988.0,41984.0,0.331789]
[1644704778451,0.0961217,41989.0,41984.0,0.385189]
[1644704778650,0.00022248,41988.0,41984.0,0.485189]
[1644704778853,0.01,41989.0,41984.0,0.485189]
[1644704779250,0.00040612,41988.0,41984.0,0.485189]
[1644704779450,0.0006286,41988.0,41984.0,0.485189]
[1644704780100,0.00022248,41988.0,41984.0,0.485189]
[1644704780303,0.08972861,41989.0,41984.0,0.585189]
[1644704780503,0.00040643,41988.0,41986.0,0.331789]
[1644704781305,0.08995109,41989.0,41986.0,0.331789]
[1644704781509,0.08972861,41989.0,41986.0,0.331789]
[1644704781806,0.09013503,41989.0,41986.0,0.341317]
[1644704782205,0.09013503,41989.0,41986.0,0.431789]
[1644704782502,0.08972861,41989.0,41986.0,0.431789]
[1644704782903,0.01,41989.0,41986.0,0.431789]
[1644704784354,0.01,41989.0,41986.0,0.481789]
[1644704784652,0.01,41989.0,41987.0,0.385189]
[1644704784850,0.01,41989.0,41987.0,0.485189]
[1644704785653,0.01,41989.0,41988.0,0.059533]
[1644704785859,0.01,41989.0,41988.0,0.444722]
[1644704786053,0.01,41989.0,41988.0,0.44621158]
[1644704786253,0.01,41989.0,41988.0,0.54621158]
[1644704790303,0.01,41989.0,41988.0,0.83530288]
[1644704791352,0.01,41989.0,41988.0,0.54621158]